bitfinex/quotes_SOLUSD_20241020
["timestamp","ask_amount","ask_price","bid_price","bid_amount"]
[1729458519741,30.422,163.19,163.15,15.3233]
[1729458520367,23.776884,163.18,163.15,15.3233]
[1729458520665,30.422,163.19,163.15,21.4525]
[1729458520957,6.38853666,163.22,163.16,15.3223]
[1729458521174,6.1271,163.21,163.16,15.3223]
[1729458521753,6.1271,163.21,163.16,21.4511]
[1729458522075,23.776884,163.2,163.16,21.4511]
[1729458523765,6.1278,163.19,163.13,6.1298]
[1729458523996,23.776884,163.18,163.13,6.1298]
[1729458524172,23.776884,163.18,163.1,0.7863184]
[1729458524461,23.776884,163.15,163.1,0.7863184]
[1729458524641,23.776884,163.15,163.11,6.1307]
[1729458524836,21.70533666,163.22,163.13,6.1298]
[1729458524837,6.128,163.19,163.13,6.1298]
[1729458525062,23.776884,163.18,163.12,15.3257]
[1729458525274,23.776884,163.18,163.13,15.3246]
[1729458525472,23.776884,163.19,163.13,15.3246]
[1729458525643,23.776884,163.21,163.19,6.1275]
[1729458525846,23.776884,163.21,163.17,15.3214]
[1729458526059,6.38853666,163.22,163.18,6.1278]
[1729458526264,6.38853666,163.22,163.17,15.3214]
[1729458526444,6.127,163.21,163.17,15.3214]
[1729458527373,23.776884,163.2,163.17,15.3214]
[1729458527666,6.127,163.21,163.17,21.4497]
[1729458527667,23.776884,163.21,163.17,21.4497]
[1729458527842,23.776884,163.22,163.18,6.1281]
[1729458528256,29.903784,163.22,163.17,21.4497]
[1729458529777,29.903784,163.22,163.17,20.94255789]
[1729458531071,29.903584,163.22,163.17,20.94275789]
[1729458531646,23.776884,163.22,163.14,0.1]
[1729458531848,26.127,163.21,163.13,21.4543]
[1729458532060,23.776884,163.18,163.13,21.4543]
[1729458532561,23.776884,163.18,163.14,6.1296]
[1729458533150,6.1286,163.17,163.13,15.3246]
[1729458533369,6.1289,163.16,163.11,6.1307]
[1729458533664,23.776884,163.18,163.12,6.1302]
[1729458533865,23.776884,163.18,163.12,0.2]
[1729458534070,23.776884,163.2,163.17,6.1285]
[1729458534374,6.1267,163.22,163.17,6.1285]
[1729458534375,23.776884,163.21,163.17,6.1285]
[1729458534945,6.38774506,163.23,163.18,0.2]
[1729458535163,34.5195,163.28,163.19,0.1]
[1729458535368,34.5195,163.28,163.22,21.443]
[1729458535578,6.125,163.27,163.22,21.443]
[1729458535979,34.5197,163.28,163.23,6.1261]
[1729458537061,23.776884,163.26,163.23,6.1261]
[1729458537253,23.776884,163.26,163.22,21.4432]
[1729458537453,23.776884,163.27,163.23,6.1261]
[1729458537866,34.5195,163.28,163.23,6.1261]
[1729458538771,34.5195,163.28,163.22,15.3166]
[1729458538772,28.3951,163.28,163.22,15.3166]
[1729458539473,23.776884,163.27,163.22,15.3166]
[1729458539663,29.901984,163.27,163.22,15.3166]
[1729458539992,23.776884,163.25,163.22,15.3166]
[1729458540164,23.776884,163.27,163.22,15.3166]
[1729458540475,28.3951,163.28,163.23,21.4415]
[1729458540476,29.901384,163.28,163.23,21.4415]
[1729458541049,23.776884,163.28,163.19,0.1]
[1729458541249,23.776884,163.26,163.21,6.1269]
[1729458542270,29.902084,163.26,163.21,6.1269]
[1729458542571,23.776884,163.27,163.21,0.1]
[1729458542774,23.776884,163.28,163.21,0.1]
[1729458543167,23.776884,163.28,163.23,15.3156]
[1729458543568,23.776884,163.28,163.23,21.4415]
[1729458544887,23.776884,163.28,163.23,15.3156]
[1729458545063,23.776884,163.28,163.24,6.1259]
[1729458545265,23.776884,163.28,163.23,21.4418]
[1729458545266,29.901384,163.28,163.23,21.4418]
[1729458546356,6.1267,163.22,163.17,6.2285]
[1729458546678,23.776884,163.21,163.17,6.2285]
[1729458547270,23.776884,163.21,163.17,6.1285]
[1729458547575,23.776884,163.21,163.16,15.322]
[1729458547576,29.904084,163.21,163.16,21.4509]
[1729458548770,29.904084,163.21,163.16,21.609457]
[1729458549384,23.776884,163.17,163.16,0.158557]
[1729458549967,23.776884,163.19,163.16,0.158557]
[1729458550269,36.1277,163.2,163.16,6.287457]
[1729458550270,30.0,163.2,163.16,6.287457]
[1729458550467,30.0,163.2,163.16,6.387457]
[1729458550665,23.776884,163.2,163.16,6.387457]
[1729458552481,23.776884,163.2,163.16,6.287457]
[1729458552785,23.776884,163.2,163.16,6.387457]
[1729458554288,23.776884,163.17,163.16,0.158557]
[1729458554664,23.776884,163.19,163.16,0.158557]
[1729458554973,29.904684,163.19,163.16,0.158557]
[1729458556593,23.776884,163.19,163.16,0.158557]
[1729458556768,29.904984,163.19,163.16,0.158557]
[1729458556965,23.776884,163.19,163.16,0.158557]
[1729458557288,23.776884,163.17,163.16,0.158557]
[1729458558275,6.39139499,163.21,163.17,6.1285]
[1729458558492,6.39139499,163.21,163.16,15.480857]
[1729458559065,29.7408,163.19,163.12,6.14e-05]
[1729458559286,20.0,163.1,162.96,0.6277614]
[1729458559584,6.135,163.0,162.96,0.6277614]
[1729458559788,6.1343,163.02,162.96,0.6277614]
[1729458560285,15.3308,163.07,162.96,0.6277614]
[1729458560499,6.1346,163.01,162.96,0.6277614]
[1729458561164,23.776884,163.0,162.96,0.6277614]
[1729458561367,23.776884,162.98,162.96,0.6277614]
[1729458561584,23.776884,162.97,162.96,0.6277614]
[1729458561793,49.911884,163.0,162.96,0.6277614]
[1729458561968,23.776884,163.0,162.96,0.6277614]
[1729458562167,23.776884,162.98,162.96,0.6277614]
[1729458562673,23.776884,163.0,162.96,0.6277614]
[1729458564496,14.21,163.05,162.98,6.2356]
[1729458564673,14.21,163.05,162.99,6.1351]
[1729458564868,8.0767,163.09,162.99,6.2351]
[1729458565081,6.1319,163.08,162.99,6.2351]
[1729458565275,14.2084,163.09,163.0,0.2]
[1729458565668,14.2084,163.09,163.01,0.1]
[1729458565865,8.0767,163.09,163.02,6.134]
[1729458566072,14.2084,163.09,163.02,6.134]
[1729458566266,6.1321,163.08,163.02,6.134]
[1729458568396,30.15916993,163.07,163.02,6.134]
[1729458568694,23.776884,163.05,162.98,0.1]
[1729458568893,29.909584,163.06,162.98,6.2356]
[1729458569084,6.1335,163.04,162.99,0.1]
[1729458570787,6.1335,163.04,162.98,6.2356]
[1729458571096,6.1335,163.04,162.99,0.1]
[1729458571997,23.776884,163.06,162.98,6.2356]
[1729458572299,6.1343,163.02,162.97,15.3395]
[1729458572679,29.910684,163.03,162.97,21.6752]
[1729458573088,23.776884,163.06,163.0,6.1347]
[1729458573309,6.1328,163.06,163.01,6.1345]
[1729458574219,6.38228593,163.07,162.99,15.338]
[1729458574389,23.776884,163.04,162.96,0.7277614]
[1729458574590,6.1343,163.02,162.97,0.1]
[1729458575001,6.1343,163.02,162.97,6.236]
[1729458577010,6.1334,163.04,162.99,6.1353]
[1729458577214,23.776884,163.03,162.98,0.1]
[1729458577419,29.910684,163.03,162.98,6.1356]
[1729458577593,29.910684,163.03,162.98,6.2356]
[1729458578288,29.910684,163.03,162.98,6.1356]
[1729458578512,29.910684,163.03,162.98,6.2356]
[1729458578729,36.28675152,163.03,162.98,6.2356]
[1729458579038,36.28675152,163.03,162.98,6.1356]
[1729458579221,36.28675152,163.03,162.98,6.2356]
[1729458579423,30.15295152,163.03,162.98,21.475]
[1729458579624,30.15295152,163.03,162.98,21.575]
[1729458580003,30.15295152,163.03,162.99,6.2353]
[1729458580324,6.37606752,163.03,162.99,6.2353]
[1729458580711,6.1338,163.03,162.98,21.4749]
[1729458583606,23.776884,163.02,162.96,6.7639614]
[1729458583912,20.0,163.05,162.98,0.1]
[1729458584111,23.776884,163.04,162.99,0.1]
[1729458584415,23.776884,163.04,163.0,6.1348]
[1729458584725,6.38144169,163.06,163.0,0.2]
[1729458584902,6.1319,163.09,163.05,0.1]
[1729458586217,23.776884,163.08,163.05,0.1]
[1729458586601,23.776884,163.08,163.04,6.233]
[1729458586810,23.776884,163.08,163.05,0.1]
[1729458587899,23.776884,163.08,163.04,6.233]
[1729458588222,6.38014895,163.1,163.06,6.1326]
[1729458588409,23.776884,163.1,163.06,6.1326]
[1729458589409,23.776884,163.11,163.06,0.1]
[1729458589605,23.776884,163.11,163.07,6.1319]
[1729458590008,13.5373526,163.14,163.09,21.4601]
[1729458590204,19.91427028,163.14,163.09,21.4601]
[1729458590421,19.91427028,163.14,163.09,15.3286]
[1729458590619,13.5373526,163.14,163.11,6.1307]
[1729458591327,13.5373526,163.14,163.1,15.4278]
[1729458591626,13.5373526,163.14,163.11,6.1307]
[1729458596314,13.5373526,163.14,163.1,15.4278]
[1729458597117,13.5373526,163.14,163.1,15.3278]
[1729458597605,19.6670526,163.14,163.1,15.3278]
[1729458598632,29.906984,163.13,163.08,6.2319]
[1729458598925,29.906984,163.13,163.06,67.5769]
[1729458598926,6.1308,163.11,163.06,21.4632]
[1729458599102,6.37648138,163.16,163.11,0.1]
[1729458599307,6.37648138,163.16,163.13,6.23]
[1729458599521,14.31,163.18,163.13,6.23]
[1729458599722,20.68297111,163.18,163.13,6.23]
[1729458599913,14.55477111,163.18,163.14,6.1296]
[1729458600222,6.1282,163.18,163.14,0.1]
[1729458600424,23.776884,163.17,163.13,21.5551]
[1729458600627,23.776884,163.17,163.14,0.1]
[1729458602029,23.776884,163.17,163.13,21.5551]
[1729458602420,23.776884,163.17,163.14,0.1]
[1729458605032,23.776884,163.18,163.14,6.2296]
[1729458605513,6.37280682,163.19,163.17,0.1]
[1729458605708,8.4499,163.22,163.18,6.1282]
[1729458606419,27.3631,163.24,163.19,6.1276]
[1729458606619,27.3631,163.24,163.19,6.2276]
[1729458606923,21.2371,163.24,163.2,6.1274]
[1729458607118,12.49569298,163.25,163.19,0.1]
[1729458607720,12.49569298,163.25,163.2,6.1274]
[1729458607923,6.37009298,163.25,163.21,0.1]
[1729458608123,21.2371,163.28,163.22,15.3162]
[1729458608335,12.49408454,163.27,163.22,15.3162]
[1729458608820,12.49408454,163.27,163.22,21.4428]
[1729458609535,23.776884,163.26,163.22,21.4428]
[1729458610117,23.776884,163.26,163.22,15.3162]
[1729458610419,23.776884,163.26,163.23,6.1261]
[1729458610621,6.36898454,163.27,163.25,6.1253]
[1729458610833,14.6854,163.3,163.25,6.1253]
[1729458611132,21.0523229,163.3,163.25,6.1253]
[1729458611810,23.776884,163.29,163.25,6.1253]
[1729458612916,6.3669229,163.3,163.26,6.1251]
[1729458613636,12.4906229,163.3,163.25,21.4391]
[1729458613843,6.1241,163.29,163.25,15.3136]
[1729458614314,23.776884,163.29,163.26,6.1251]
[1729458614519,23.776884,163.3,163.26,6.1251]
[1729458614724,23.776884,163.31,163.27,6.1247]
[1729458615038,6.1226,163.33,163.28,6.1243]
[1729458615425,6.123,163.32,163.27,15.312]
[1729458615639,6.123,163.32,163.27,15.412]
[1729458616443,23.776884,163.31,163.27,21.4367]
[1729458616621,6.1238,163.3,163.25,6.1254]
[1729458616829,23.776884,163.29,163.25,6.2254]
[1729458618132,23.776884,163.29,163.25,6.1254]
[1729458619319,23.776884,163.29,163.25,6.2254]
[1729458619945,23.776884,163.29,163.25,6.1254]
[1729458620441,6.1247,163.28,163.22,6.2264]
[1729458620667,23.776884,163.25,163.21,0.1]
[1729458621147,23.776884,163.25,163.2,21.5452]
[1729458621525,29.902584,163.25,163.2,21.5452]
[1729458621918,29.902584,163.25,163.21,0.1]
[1729458623145,29.902584,163.25,163.17,0.1]
[1729458623146,6.1281,163.19,163.17,0.1]
[1729458623348,23.776884,163.23,163.12,20.9597]
[1729458623525,23.776884,163.18,163.13,6.13]
[1729458623722,23.776884,163.18,163.14,0.1]
[1729458624221,23.776884,163.18,163.13,21.5546]
[1729458624647,23.776884,163.18,163.14,0.1]
[1729458625950,29.905084,163.18,163.14,0.1]
[1729458626750,29.905084,163.18,163.13,21.5546]
[1729458627445,23.776884,163.15,163.1,21.4587]
[1729458628248,29.906284,163.15,163.1,21.4587]
[1729458628454,29.906284,163.15,163.1,21.5587]
[1729458629248,29.905884,163.16,163.1,21.5587]
[1729458629933,23.776884,163.16,163.1,0.2]
[1729458630138,23.776884,163.17,163.13,0.1]
[1729458630340,23.776884,163.17,163.14,6.1293]
[1729458630540,23.776884,163.17,163.15,6.1292]
[1729458630737,23.776884,163.17,163.11,0.1]
[1729458630950,23.776884,163.15,163.11,0.1]
[1729458631127,23.776884,163.17,163.12,0.1]
[1729458631324,23.776884,163.17,163.11,0.1]
[1729458631737,23.776884,163.14,163.11,0.1]
[1729458632533,23.776884,163.14,163.1,0.1]
[1729458632734,23.776884,163.14,163.11,0.1]
[1729458632952,23.776884,163.14,163.1,0.1]
[1729458633135,23.776884,163.14,163.11,0.1]
[1729458633855,12.49659791,163.18,163.12,6.2303]
[1729458634233,23.776884,163.17,163.12,0.1]
[1729458634453,29.905584,163.17,163.12,0.1]
[1729458634954,29.905584,163.17,163.12,6.2304]
[1729458635137,6.36839791,163.18,163.13,0.1]
[1729458635340,30.1848,163.21,163.16,21.4509]
[1729458635538,36.3118,163.21,163.16,15.4223]
[1729458636139,30.1848,163.21,163.16,15.4223]
[1729458636337,6.126,163.24,163.18,6.2281]
[1729458636746,21.25964562,163.25,163.19,6.1276]
[1729458636952,21.25964562,163.25,163.2,6.2273]
[1729458637548,31.67634133,163.33,163.16,0.1]
[1729458637549,29.2622,163.32,163.24,0.1]
[1729458637856,12.48771839,163.31,163.24,6.2259]
[1729458638556,6.1238,163.3,163.24,6.2259]
[1729458638739,6.36431839,163.31,163.26,6.1249]
[1729458639744,6.36431839,163.31,163.21,52.2551]
[1729458639745,6.36431839,163.31,163.3,6.1236]
[1729458639947,19.0988855,163.38,163.29,0.1]
[1729458640154,6.37117838,163.36,163.31,0.1]
[1729458640545,6.37117838,163.36,163.32,6.1227]
[1729458640749,6.37117838,163.36,163.34,21.4275]
[1729458640948,6.1188,163.43,163.35,6.2215]
[1729458641147,6.36901364,163.41,163.37,15.3026]
[1729458641744,6.36901364,163.41,163.39,21.5207]
[1729458641945,6.117,163.48,163.41,6.1194]
[1729458642251,12.6054321,163.49,163.37,6.1208]
[1729458642252,6.36754028,163.43,163.37,6.1208]
[1729458642560,12.6054321,163.49,163.38,0.1]
[1729458642561,6.1179,163.46,163.38,0.1]
[1729458642767,6.36821872,163.43,163.39,6.1203]
[1729458642947,6.1172,163.48,163.39,15.4008]
[1729458643146,6.36751007,163.48,163.42,6.1191]
[1729458643358,6.36751007,163.48,163.42,6.2191]
[1729458643755,6.36751007,163.48,163.42,6.1191]
[1729458643948,12.48451007,163.48,163.41,0.1]
[1729458644145,12.48451007,163.48,163.41,6.2194]
[1729458644545,12.48451007,163.48,163.41,6.1194]
[1729458644751,23.776884,163.47,163.41,6.1194]
[1729458644957,23.776884,163.47,163.36,30.3067]
[1729458645150,23.776884,163.47,163.37,30.6053]
[1729458645359,23.776884,163.47,163.42,6.119]
[1729458646271,6.36751007,163.48,163.45,6.1179]
[1729458646573,6.1175,163.47,163.39,15.3008]
[1729458646974,6.1175,163.47,163.4,6.1198]
[1729458647549,43.776884,163.46,163.4,6.1198]
[1729458647751,43.776884,163.46,163.41,6.1195]
[1729458648370,49.894684,163.46,163.39,21.4207]
[1729458649878,49.894684,163.46,163.39,15.3008]
[1729458650087,49.894684,163.46,163.4,6.1198]
[1729458650981,43.776884,163.46,163.35,15.3039]
[1729458651178,6.1195,163.42,163.35,15.3039]
[1729458651384,23.776884,163.41,163.35,21.4255]
[1729458651958,23.776884,163.41,163.36,6.1214]
[1729458652581,29.896784,163.41,163.35,15.3039]
[1729458653693,36.26597455,163.41,163.35,15.3039]
[1729458654288,36.26597455,163.41,163.3,8.4215]
[1729458654289,23.776884,163.39,163.32,15.3072]
[1729458654588,29.897284,163.39,163.33,6.1225]
[1729458656092,23.776884,163.27,163.19,7.9654]
[1729458656999,18.6,163.37,163.26,6.1251]
[1729458657291,23.776884,163.32,163.27,6.1247]
[1729458658069,23.776884,163.26,163.21,15.3176]
[1729458658268,20.0,163.29,163.21,15.3176]
[1729458658563,6.1257,163.25,163.18,6.1278]
[1729458658765,23.776884,163.24,163.18,6.1278]
[1729458659113,23.776884,163.24,163.14,7.9654]
[1729458659305,23.776884,163.24,163.19,6.1278]
[1729458659470,23.776884,163.24,163.2,6.1273]
[1729458659670,23.776884,163.24,163.21,6.1269]
[1729458660567,14.4098,163.28,163.22,6.1264]
[1729458660769,23.776884,163.27,163.22,6.1264]
[1729458663787,14.4098,163.28,163.26,6.125]
[1729458663788,6.37044227,163.28,163.26,6.125]
[1729458664105,6.1233,163.31,163.25,15.3136]
[1729458664278,6.1257,163.25,163.19,6.1277]
[1729458665091,23.776884,163.23,163.19,6.1277]
[1729458665396,29.903184,163.23,163.18,15.3205]
[1729458666979,23.776884,163.23,163.18,21.4486]
[1729458667174,23.776884,163.23,163.19,6.1276]
[1729458667405,23.776884,163.25,163.2,6.1272]
[1729458667570,23.776884,163.25,163.14,38.7135]
[1729458667771,6.37146617,163.26,163.24,6.1258]
[1729458668002,6.37146617,163.26,163.25,6.1255]
[1729458668177,0.1,163.3,163.15,20.0]
[1729458668501,6.1255,163.26,163.19,6.1277]
[1729458668673,0.1,163.28,163.18,6.1281]
[1729458668873,6.1262,163.24,163.18,6.1281]
[1729458669096,6.1264,163.23,163.17,21.4488]
[1729458669296,23.776884,163.22,163.17,21.4488]
[1729458669875,23.776884,163.22,163.14,38.6135]
[1729458670079,23.776884,163.22,163.2,6.1272]
[1729458670382,6.37190736,163.27,163.15,20.0]
[1729458670588,6.37190736,163.27,163.22,6.1263]
[1729458670986,6.37190736,163.27,163.23,6.1262]
[1729458671887,23.776884,163.26,163.23,6.1262]
[1729458672087,6.37190736,163.27,163.23,6.1262]
[1729458673279,23.776884,163.26,163.23,6.1262]
[1729458677006,23.776884,163.26,163.15,50.7466]
[1729458677196,23.776884,163.26,163.23,6.1259]
[1729458678412,6.37190736,163.27,163.25,6.1253]
[1729458678588,23.776884,163.26,163.17,30.6428]
[1729458678899,23.776884,163.26,163.23,6.1263]
[1729458679207,23.776884,163.26,163.22,6.1266]
[1729458679388,29.902084,163.26,163.19,30.6391]
[1729458679709,29.902084,163.26,163.21,6.1269]
[1729458681986,29.902084,163.26,163.22,6.1266]
[1729458682896,23.776884,163.26,163.22,6.1266]
[1729458685006,23.776884,163.26,163.23,6.1262]
[1729458687397,23.776884,163.26,163.21,15.3176]
[1729458687599,29.902084,163.26,163.21,21.4443]
[1729458688610,23.776884,163.23,163.18,15.3205]
[1729458688999,23.776884,163.21,163.18,15.3205]
[1729458689815,29.903984,163.21,163.17,6.1282]
[1729458690118,33.19933313,163.24,163.14,30.6474]
[1729458690119,23.776884,163.23,163.14,30.6474]
[1729458690300,23.776884,163.23,163.19,6.1277]
[1729458690713,23.776884,163.23,163.14,30.6474]
[1729458690714,23.776884,163.23,163.14,45.9711]
[1729458690891,6.1277,163.2,163.14,21.453]
[1729458691295,23.776884,163.19,163.09,50.0896]
[1729458691491,20.0,163.22,163.18,6.1282]
[1729458691492,23.776884,163.22,163.18,6.1282]
[1729458691995,23.776884,163.23,163.18,6.1278]
[1729458694896,23.776884,163.23,163.12,20.0]
[1729458695096,23.776884,163.23,163.18,6.1278]
[1729458696396,23.776884,163.23,163.2,6.1274]
[1729458696791,23.776884,163.24,163.21,6.1269]
[1729458696992,23.776884,163.23,163.17,15.3213]
[1729458697216,23.776884,163.2,163.17,15.3213]
[1729458697516,23.776884,163.18,163.14,6.1295]
[1729458697720,23.776884,163.18,163.15,6.129]
[1729458698015,23.776884,163.19,163.15,6.129]
[1729458698520,23.776884,163.19,163.16,6.1289]
[1729458698724,23.776884,163.2,163.16,6.1289]
[1729458700521,23.776884,163.2,163.1,7.6306]
[1729458700723,6.1255,163.25,163.19,6.1275]
[1729458702020,23.776884,163.25,163.2,6.127]
[1729458702522,29.902684,163.25,163.2,6.127]
[1729458703116,23.776884,163.23,163.19,21.4465]
[1729458705007,23.776884,163.23,163.2,6.1274]
[1729458708418,23.776884,163.25,163.13,0.1]
[1729458708729,23.776884,163.25,163.21,6.1268]
[1729458710014,23.776884,163.26,163.22,6.1265]
[1729458713206,23.776884,163.25,163.22,6.1265]
[1729458713401,23.776884,163.25,163.22,3.6265]
[1729458713607,23.776884,163.25,163.2,15.3177]
[1729458714217,23.776884,163.26,163.17,30.6428]
[1729458715426,23.776884,163.26,163.22,6.1264]
[1729458715628,6.36896058,163.28,163.21,20.0]
[1729458715933,6.36896058,163.28,163.27,6.1248]
[1729458716108,23.6052,163.38,163.33,6.1223]
[1729458716305,6.36750534,163.37,163.33,6.1225]
[1729458716505,6.36750534,163.37,163.28,20.0]
[1729458716739,23.6052,163.38,163.28,20.0]
[1729458717028,23.6052,163.38,163.32,15.3066]
[1729458717229,23.6052,163.38,163.34,6.1221]
[1729458717608,6.36617698,163.39,163.34,6.1221]
[1729458718116,6.36617698,163.39,163.3,30.6184]
[1729458718322,6.36617698,163.39,163.35,6.1214]
[1729458718718,23.776884,163.41,163.35,6.1214]
[1729458718916,20.0,163.41,163.35,6.1214]
[1729458719146,29.97098709,163.42,163.37,6.121]
[1729458719318,36.09018709,163.42,163.37,6.121]
[1729458719816,29.97098709,163.42,163.37,6.1208]
[1729458720035,36.09018709,163.42,163.37,6.1208]
[1729458721033,23.776884,163.41,163.37,6.1208]
[1729458722727,23.776884,163.41,163.37,6.121]
[1729458723243,23.776884,163.41,163.36,15.3034]
[1729458723427,29.896484,163.41,163.36,21.4247]
[1729458723735,23.776884,163.41,163.36,21.4247]
[1729458725137,23.776884,163.41,163.37,6.1209]
[1729458730720,6.36578709,163.42,163.33,15.8548]
[1729458731038,8.02991564,163.49,163.33,15.8548]
[1729458731039,6.1166,163.49,163.43,6.1187]
[1729458731230,0.6277614,163.52,163.39,16.162]
[1729458731231,6.3703451,163.5,163.4,6.1199]
[1729458731422,6.3703451,163.5,163.45,6.118]
[1729458731812,0.1,163.32,163.17,12.9034451]
[1729458732044,24.27466703,163.31,163.21,15.3169]
[1729458732217,24.37466703,163.31,163.17,6.5331]
[1729458732412,24.37466703,163.31,163.2,6.1273]
[1729458732413,39.68296703,163.31,163.2,6.1273]
[1729458732632,6.1247,163.28,163.2,6.1273]
[1729458733048,23.776884,163.27,163.2,6.1273]
[1729458733527,23.776884,163.26,163.2,6.1273]
[1729458735619,23.776884,163.26,163.18,15.3205]
[1729458735620,23.776884,163.26,163.22,6.1265]
[1729458736731,23.776884,163.27,163.22,6.1265]
[1729458737542,23.776884,163.27,163.18,52.0897]
[1729458737743,23.776884,163.28,163.18,50.641]
[1729458737942,23.776884,163.28,163.21,15.3172]
[1729458738626,29.901384,163.28,163.21,15.3172]
[1729458738820,29.901384,163.28,163.22,6.1267]
[1729458745438,23.776884,163.28,163.22,6.1267]
[1729458745750,23.776884,163.26,163.22,6.1267]
[1729458745930,23.776884,163.26,163.21,15.3172]
[1729458746134,23.776884,163.26,163.21,21.4442]
[1729458747329,6.1269,163.22,163.17,21.4494]
[1729458747537,23.776884,163.24,163.14,6.1296]
[1729458747724,15.3148,163.24,163.14,6.1293]
[1729458747926,23.776884,163.2,163.14,15.3239]
[1729458748139,23.776884,163.2,163.16,6.1289]
[1729458748551,23.776884,163.21,163.16,6.1289]
[1729458749340,23.776884,163.21,163.12,23.3224]
[1729458749341,23.776884,163.21,163.17,6.1285]
[1729458749733,23.776884,163.21,163.16,6.1287]
[1729458750955,30.0,163.19,163.15,15.3233]
[1729458751254,23.776884,163.18,163.15,15.3233]
[1729458751434,23.776884,163.18,163.17,6.1285]
[1729458751639,23.776884,163.18,163.15,6.1292]
[1729458751838,30.0,163.19,163.18,6.1282]
[1729458752052,0.1,163.25,163.17,15.321]
[1729458752231,6.1268,163.22,163.17,15.321]
[1729458752832,6.127,163.21,163.17,15.321]
[1729458753337,23.776884,163.2,163.17,15.321]
[1729458755146,23.776884,163.2,163.18,6.1282]
[1729458755857,23.776884,163.2,163.13,50.6504]
[1729458756157,6.36977895,163.23,163.2,6.1272]
[1729458756158,23.776884,163.22,163.2,6.1272]
[1729458760358,23.776884,163.23,163.19,15.319]
[1729458760562,29.903184,163.23,163.19,15.319]
[1729458761334,29.903184,163.23,163.19,21.4467]
[1729458762440,29.903184,163.23,163.19,15.319]
[1729458762643,6.1273,163.21,163.16,6.1288]
[1729458762961,23.776884,163.2,163.16,6.1288]
[1729458763974,29.904384,163.2,163.15,21.4516]
[1729458764962,23.776884,163.18,163.15,15.3224]
[1729458766960,23.776884,163.18,163.15,21.4517]
[1729458768753,29.905184,163.18,163.09,20.0]
[1729458769154,23.776884,163.16,163.12,21.4562]
[1729458770164,23.776884,163.16,163.12,15.3261]
[1729458770450,23.776884,163.16,163.13,6.13]
[1729458771551,23.776884,163.16,163.09,20.0]
[1729458771757,23.776884,163.16,163.14,6.1293]
[1729458771953,23.776884,163.16,163.1,36.7872]
[1729458772148,23.776884,163.16,163.14,6.1294]
[1729458772560,6.36697324,163.19,163.09,20.0]
[1729458772739,6.8794,163.23,163.08,22.7667]
[1729458772740,20.0,163.21,163.11,20.0]
[1729458773164,26.36742489,163.21,163.11,20.0]
[1729458773373,26.36742489,163.21,163.16,6.1286]
[1729458774179,23.776884,163.2,163.09,20.0]
[1729458774369,23.776884,163.2,163.17,6.1285]
[1729458774763,23.776884,163.2,163.18,6.128]
[1729458774945,6.8794,163.23,163.19,6.1277]
[1729458775564,6.1267,163.22,163.18,15.3201]
[1729458775762,13.0058,163.23,163.18,21.4481]
[1729458776153,23.776884,163.22,163.19,6.1278]
[1729458777854,23.776884,163.23,163.19,6.1278]
[1729458780267,6.1271,163.21,163.16,6.1288]
[1729458780471,6.1271,163.21,163.14,30.6484]
[1729458780472,23.776884,163.2,163.18,6.1281]
[1729458781880,6.1263,163.23,163.17,15.3213]
[1729458782063,23.776884,163.22,163.18,6.1282]
[1729458783477,23.776884,163.22,163.14,30.6484]
[1729458783694,6.3670601,163.24,163.16,20.0]